fUSD/lending_fUSD_20250217
["ID","MTS","AMOUNT","RATE_DAILY","PERIOD"]
[353373025,1739802649862,-624.66,0.0001378,2]
[353373026,1739802649873,-500.0,0.0001378,2]
[353373027,1739802649884,-835.57,0.0001378,2]
[353373028,1739802649893,-714.38,0.0001378,2]
[353373029,1739802649902,-500.0,0.0001378,2]
[353373030,1739802649913,-1003.47,0.0001378,2]
[353373031,1739802649927,-1095.31,0.0001378,2]
[353373032,1739802649938,-1308.63,0.0001378,2]
[353373033,1739802649948,-1246.11,0.0001378,2]
[353373034,1739802649959,-500.0,0.0001378,2]
[353373035,1739802649969,-500.0,0.0001378,2]
[353373036,1739802649980,-500.0,0.0001378,2]
[353373037,1739802649991,-677.47,0.0001378,2]
[353373038,1739802650002,-663.42,0.0001378,2]
[353373039,1739802650013,-740.85,0.0001378,2]
[353373040,1739802650024,-753.71,0.0001378,2]
[353373041,1739802650035,-500.0,0.0001378,2]
[353373042,1739802650045,-784.77,0.0001378,2]
[353373043,1739802650055,-1300.99,0.0001378,2]
[353373044,1739802650065,-1254.66,0.0001378,2]
[353373045,1739802650075,-500.0,0.0001378,2]
[353373046,1739802650086,-623.24,0.0001378,2]
[353373047,1739802650096,-500.0,0.0001378,2]
[353373048,1739802650106,-500.0,0.0001378,2]
[353373049,1739802650115,-500.0,0.0001378,2]
[353373050,1739802650125,-1710.43,0.0001378,2]
[353373051,1739802650135,-500.0,0.0001378,2]
[353373052,1739802650146,-500.0,0.0001378,2]
[353373053,1739802650156,-1228.65,0.0001378,2]
[353373054,1739802650168,-540.39,0.0001378,2]
[353373055,1739802650179,-500.0,0.0001378,2]
[353373056,1739802650189,-1240.8,0.0001378,2]
[353373057,1739802650199,-2588.41,0.0001378,2]
[353373058,1739802650210,-626.92,0.0001378,2]
[353373059,1739802650221,-854.91,0.0001378,2]
[353373060,1739802650231,-1184.48,0.0001378,2]
[353373061,1739802650241,-679.94,0.0001378,2]
[353373062,1739802650251,-1166.13,0.0001378,2]
[353373063,1739802650262,-543.88,0.0001378,2]
[353373064,1739802650275,-922.37,0.0001378,2]
[353373065,1739802650286,-500.0,0.0001378,2]
[353373066,1739802650296,-746.21,0.0001378,2]
[353373067,1739802650306,-878.89,0.0001378,2]
[353373068,1739802650318,-549.32,0.0001378,2]
[353373069,1739802650328,-1193.57,0.0001378,2]
[353373070,1739802650338,-537.06,0.0001378,2]
[353373071,1739802650358,-500.0,0.0001378,2]
[353373072,1739802650372,-500.0,0.0001378,2]
[353373073,1739802650381,-500.0,0.0001378,2]
[353373074,1739802650391,-1276.53,0.0001378,2]
[353373075,1739802650402,-1500.26,0.0001378,2]
[353373076,1739802650412,-1224.26,0.0001378,2]
[353373077,1739802650423,-1968.77,0.0001378,2]
[353373078,1739802650433,-936.31,0.0001378,2]
[353373079,1739802650443,-923.1,0.0001378,2]
[353373080,1739802650452,-1821.42,0.0001378,2]
[353373081,1739802650462,-953.55,0.0001378,2]
[353373082,1739802650472,-629.74,0.0001378,2]
[353373083,1739802650482,-1925.9,0.0001378,2]
[353373084,1739802650491,-1373.77,0.0001378,2]
[353373085,1739802650501,-777.15,0.0001378,2]
[353373086,1739802650510,-1360.86,0.0001378,2]
[353373087,1739802650520,-1721.16,0.0001378,2]
[353373088,1739802650530,-597.01,0.0001378,2]
[353373089,1739802650539,-500.0,0.0001378,2]
[353373090,1739802650548,-2856.92,0.0001378,2]
[353373091,1739802650558,-1221.23,0.0001378,2]
[353373092,1739802650567,-582.92,0.0001378,2]
[353373093,1739802650577,-1655.27,0.0001378,2]
[353373094,1739802650587,-484.66452587,0.0001378,2]
[353373095,1739802650598,-998.85,0.0001378,2]
[353373096,1739802650607,-1320.03,0.0001378,2]
[353373097,1739802650616,-500.0,0.0001378,2]
[353373098,1739802650626,-1101.88,0.0001378,2]
[353373099,1739802650635,-1781.48,0.0001378,2]
[353373100,1739802650645,-1532.18,0.0001378,2]
[353373101,1739802650655,-1278.39,0.0001378,2]
[353373102,1739802650664,-500.0,0.0001378,2]
[353373103,1739802650675,-709.02,0.0001378,2]
[353373104,1739802650684,-1582.08,0.0001378,2]
[353373105,1739802650693,-1622.86,0.0001378,2]
[353373106,1739802650703,-3706.0,0.0001378,2]
[353373107,1739802650712,-1690.48,0.0001378,2]
[353373108,1739802650721,-855.83,0.0001378,2]
[353373109,1739802650731,-525.76,0.0001378,2]
[353373110,1739802650740,-1957.36,0.0001378,2]
[353373111,1739802650749,-3569.51,0.0001378,2]
[353373112,1739802650759,-566.98,0.0001378,2]
[353373113,1739802650768,-672.57,0.0001378,2]
[353373114,1739802650778,-2378.92,0.0001378,2]
[353373115,1739802650787,-500.0,0.0001378,2]
[353373116,1739802650796,-2289.35,0.0001378,2]
[353373117,1739802650806,-500.0,0.0001378,2]
[353373118,1739802650815,-2954.12,0.0001378,2]
[353373119,1739802650823,-1186.98,0.0001378,2]
[353373120,1739802650834,-1677.48,0.0001378,2]
[353373121,1739802650843,-2013.13,0.0001378,2]
[353373122,1739802650852,-630.92,0.0001378,2]
[353373123,1739802650861,-1558.96,0.0001378,2]
[353373124,1739802650870,-1434.38,0.0001378,2]
[353373125,1739802650879,-5866.27,0.0001378,2]
[353373126,1739802650888,-1408.73,0.0001378,2]
[353373127,1739802650897,-817.2,0.0001378,2]
[353373128,1739802650906,-1026.1,0.0001378,2]
[353373129,1739802650915,-500.0,0.0001378,2]
[353373130,1739802650924,-1379.53,0.0001378,2]
[353373131,1739802650934,-1645.43,0.0001378,2]
[353373132,1739802650943,-2395.62,0.0001378,2]
[353373133,1739802650953,-2390.98,0.0001378,2]
[353373134,1739802650962,-2013.75,0.0001378,2]
[353373135,1739802650972,-500.0,0.0001378,2]
[353373136,1739802650982,-1303.32,0.0001378,2]
[353373137,1739802650992,-500.0,0.0001378,2]
[353373138,1739802651001,-3139.83,0.0001378,2]
[353373139,1739802651011,-2659.2,0.0001378,2]
[353373140,1739802651020,-1768.32,0.0001378,2]
[353373141,1739802651030,-2322.4,0.0001378,2]
[353373142,1739802651040,-1560.17,0.0001378,2]
[353373143,1739802651274,-1421.37,0.0001378,2]
[353373144,1739802651284,-1249.97,0.0001378,2]
[353373145,1739802651293,-500.0,0.0001378,2]
[353373146,1739802651302,-2096.66,0.0001378,2]
[353373147,1739802651312,-500.0,0.0001378,2]
[353373148,1739802651321,-2033.49,0.0001378,2]
[353373149,1739802651331,-616.64,0.0001378,2]
[353373150,1739802651343,-1860.89,0.0001378,2]
[353373151,1739802651353,-916.68,0.0001378,2]
[353373152,1739802651362,-2594.76,0.0001378,2]
[353373153,1739802651372,-1905.06,0.0001378,2]
[353373154,1739802651381,-2802.08,0.0001378,2]
[353373155,1739802651390,-500.65,0.0001378,2]
[353373156,1739802651400,-500.0,0.0001378,2]
[353373157,1739802651409,-2267.54,0.0001378,2]
[353373158,1739802651421,-1199.98,0.0001378,2]
[353373159,1739802651430,-1354.38,0.0001378,2]
[353373160,1739802651440,-1225.06,0.0001378,2]
[353373161,1739802651449,-1465.22,0.0001378,2]
[353373162,1739802651458,-2069.75,0.0001378,2]
[353373163,1739802651468,-1283.41,0.0001378,2]
[353373164,1739802651477,-500.0,0.0001378,2]
[353373165,1739802651486,-951.52,0.0001378,2]
[353373166,1739802651495,-1266.1,0.0001378,2]
[353373167,1739802651504,-2414.56,0.0001378,2]
[353373168,1739802651514,-2287.59,0.0001378,2]
[353373169,1739802651523,-2554.16,0.0001378,2]
[353373170,1739802651532,-2174.96,0.0001378,2]
[353373171,1739802651541,-500.0,0.0001378,2]
[353373172,1739802651551,-500.0,0.0001378,2]
[353373173,1739802651560,-676.65,0.0001378,2]
[353373174,1739802651569,-708.55,0.0001378,2]
[353373175,1739802651578,-3271.05,0.0001378,2]
[353373176,1739802651588,-5868.27,0.0001378,2]
[353373177,1739802651596,-988.74,0.0001378,2]
[353373178,1739802651605,-2008.97,0.0001378,2]
[353373179,1739802651616,-500.0,0.0001378,2]
[353373180,1739802651625,-500.0,0.0001378,2]
[353373181,1739802651635,-637.14,0.0001378,2]
[353373182,1739802651644,-1674.83,0.0001378,2]
[353373183,1739802651654,-2023.78,0.0001378,2]
[353373184,1739802651663,-1380.8,0.0001378,2]
[353373185,1739802651674,-500.0,0.0001378,2]
[353373186,1739802651684,-1655.78,0.0001378,2]
[353373187,1739802651694,-1430.0,0.0001378,2]
[353373188,1739802651703,-1917.91,0.0001378,2]
[353373189,1739802651713,-587.49,0.0001378,2]
[353373190,1739802651722,-1753.96,0.0001378,2]
[353373191,1739802651732,-500.0,0.0001378,2]
[353373192,1739802651742,-500.0,0.0001378,2]
[353373193,1739802651751,-1475.84,0.0001378,2]
[353373194,1739802651760,-2053.17,0.0001378,2]
[353373195,1739802651770,-1910.16,0.0001378,2]
[353373196,1739802651779,-1205.78,0.0001378,2]
[353373197,1739802651789,-3150.11,0.0001378,2]
[353373198,1739802651798,-675.41,0.0001378,2]
[353373199,1739802651807,-2165.6,0.0001378,2]
[353373200,1739802651816,-3799.39,0.0001378,2]
[353373201,1739802651825,-2391.17,0.0001378,2]
[353373202,1739802651834,-1583.8,0.0001378,2]
[353373203,1739802651843,-2362.6,0.0001378,2]
[353373204,1739802651853,-610.75,0.0001378,2]
[353373205,1739802651862,-1570.41,0.0001378,2]
[353373206,1739802651871,-1799.62,0.0001378,2]
[353373207,1739802651880,-3074.42,0.0001378,2]
[353373208,1739802651890,-1706.7,0.0001378,2]
[353373209,1739802651899,-793.45,0.0001378,2]
[353373210,1739802651909,-1420.62,0.0001378,2]
[353373211,1739802651922,-500.0,0.0001378,2]
[353373212,1739802651932,-1396.83,0.0001378,2]
[353373213,1739802651941,-2251.49,0.0001378,2]
[353373214,1739802651951,-1386.47,0.0001378,2]
[353373215,1739802651961,-568.73,0.0001378,2]
[353373216,1739802651970,-885.33,0.0001378,2]
[353373217,1739802651979,-711.84,0.0001378,2]
[353373218,1739802651989,-620.14,0.0001378,2]
[353373219,1739802651998,-921.78,0.0001378,2]
[353373220,1739802652007,-844.24,0.0001378,2]
[353373221,1739802652016,-2792.4,0.0001378,2]
[353373222,1739802652025,-759.93,0.0001378,2]
[353373223,1739802652035,-500.0,0.0001378,2]
[353373224,1739802652045,-500.0,0.0001378,2]
[353373225,1739802652054,-522.64,0.0001378,2]
[353373226,1739802652063,-2573.47,0.0001378,2]
[353373227,1739802652072,-1492.61,0.0001378,2]
[353373228,1739802652081,-1409.01,0.0001378,2]
[353373229,1739802652091,-500.0,0.0001378,2]
[353373230,1739802652100,-1504.37,0.0001378,2]
[353373231,1739802652109,-1137.52,0.0001378,2]
[353373232,1739802652119,-150.0,0.00013781,2]
[353373233,1739802652129,-150.0,0.00013788,2]
[353373234,1739802652138,-159.79739724,0.00013793,2]
[353373235,1739802652147,-150.0,0.00013809,2]
[353373236,1739802652156,-150.0,0.00013813,2]
[353373237,1739802652167,-500.0,0.00013814,2]
[353373238,1739802652176,-1000.0,0.00013815,2]
[353373239,1739802652186,-186.9761478,0.00013826,2]
[353373240,1739802652195,-1257.0,0.00013827,2]
[353373241,1739802652204,-150.0,0.00013834,2]
[353373242,1739802652214,-1000.0,0.00013836,2]
[353373243,1739802652223,-1000.0,0.00013836,2]
[353373244,1739802652232,-1000.0,0.00013836,2]
[353373245,1739802652242,-1000.0,0.00013836,2]
[353373246,1739802652251,-1000.0,0.00013836,2]
[353373247,1739802652262,-1000.0,0.00013836,2]
[353373248,1739802652274,-1000.0,0.00013836,2]
[353373249,1739802652284,-1000.0,0.00013836,2]
[353373250,1739802652294,-1000.0,0.00013836,2]
[353373251,1739802652303,-1000.0,0.00013836,2]
[353373252,1739802652315,-1606.59526276,0.00013845,2]
[353373253,1739802652326,-1000.0,0.00013846,2]
[353373254,1739802652335,-150.0,0.00013853,2]
[353373255,1739802652348,-150.0,0.00013856,2]
[353373256,1739802652358,-150.0,0.00013858,2]
[353373257,1739802652368,-500.0,0.00013861,2]
[353373258,1739802652378,-500.0,0.00013861,2]
[353373259,1739802652387,-500.0,0.00013861,2]
[353373260,1739802652397,-516.10462946,0.00013861,2]
[353373261,1739802652406,-452.16889785,0.00013861,2]
[353373262,1739802652416,-561.92,0.00013861,2]
[353373263,1739802652428,-500.0,0.00013861,2]
[353373264,1739802652438,-500.0,0.00013861,2]
[353373265,1739802652448,-514.26638183,0.00013861,2]
[353373266,1739802652458,-500.0,0.00013861,2]
[353373267,1739802652468,-622.38,0.00013861,2]
[353373268,1739802652478,-500.0,0.00013861,2]
[353373269,1739802652488,-500.0,0.00013861,2]
[353373270,1739802652498,-500.0,0.00013861,2]
[353373271,1739802652508,-500.0,0.00013861,2]
[353373272,1739802652518,-500.0,0.00013861,2]
[353373273,1739802652527,-563.35,0.00013861,2]
[353373274,1739802652537,-632.49,0.00013861,2]
[353373275,1739802652547,-500.0,0.00013861,2]
[353373276,1739802652556,-500.0,0.00013861,2]
[353373277,1739802652566,-500.0,0.00013861,2]
[353373278,1739802652575,-500.0,0.00013861,2]
[353373279,1739802652585,-500.0,0.00013861,2]
[353373280,1739802652594,-500.0,0.00013861,2]
[353373281,1739802652604,-500.0,0.00013861,2]
[353373282,1739802652614,-867.97,0.00013861,2]
[353373283,1739802652624,-525.78,0.00013861,2]
[353373284,1739802652634,-500.0,0.00013861,2]
[353373285,1739802652643,-278.6693393,0.00013861,2]
[353373286,1739802652653,-713.55,0.00013861,2]
[353373287,1739802652663,-500.0,0.00013861,2]
[353373288,1739802652676,-500.0,0.00013861,2]
[353373289,1739802652685,-666.22,0.00013861,2]
[353373290,1739802652695,-500.0,0.00013861,2]
[353373291,1739802652704,-500.0,0.00013861,2]
[353373292,1739802652713,-500.0,0.00013861,2]
[353373293,1739802652722,-500.0,0.00013861,2]
[353373294,1739802652732,-500.0,0.00013861,2]
[353373295,1739802652741,-500.0,0.00013861,2]
[353373296,1739802652750,-500.0,0.00013861,2]
[353373297,1739802652760,-500.0,0.00013861,2]
[353373298,1739802652769,-500.0,0.00013861,2]
[353373299,1739802652779,-500.0,0.00013861,2]
[353373300,1739802652789,-500.0,0.00013861,2]
[353373301,1739802652798,-500.0,0.00013861,2]
[353373302,1739802652808,-170.83,0.00013861,2]
[353373303,1739802652818,-500.0,0.00013861,2]
[353373304,1739802652827,-500.0,0.00013861,2]
[353373305,1739802652836,-500.0,0.00013861,2]
[353373306,1739802652847,-500.0,0.00013861,2]
[353373307,1739802652857,-500.0,0.00013861,2]
[353373308,1739802652866,-500.0,0.00013861,2]
[353373309,1739802652876,-500.0,0.00013861,2]
[353373310,1739802652885,-724.84,0.00013861,2]
[353373311,1739802652894,-500.0,0.00013861,2]
[353373312,1739802652903,-500.0,0.00013861,2]
[353373313,1739802652913,-500.0,0.00013861,2]
[353373314,1739802652924,-500.0,0.00013861,2]
[353373315,1739802652934,-500.0,0.00013861,2]
[353373316,1739802652944,-500.0,0.00013861,2]
[353373317,1739802652953,-500.0,0.00013861,2]
[353373318,1739802652962,-783.43,0.00013861,2]
[353373319,1739802652972,-500.0,0.00013861,2]
[353373320,1739802652981,-500.0,0.00013861,2]
[353373321,1739802652990,-500.0,0.00013861,2]
[353373322,1739802653000,-546.15,0.00013861,2]
[353373323,1739802653009,-156.45502156,0.00013861,2]
[353373324,1739802653019,-500.0,0.00013861,2]
[353373325,1739802653028,-500.0,0.00013861,2]
[353373326,1739802653039,-500.0,0.00013861,2]
[353373327,1739802653049,-500.0,0.00013861,2]
[353373328,1739802653059,-500.0,0.00013861,2]
[353373329,1739802653069,-513.13708437,0.00013861,2]
[353373330,1739802653078,-500.0,0.00013861,2]
[353373331,1739802653088,-500.0,0.00013861,2]
[353373332,1739802653098,-500.0,0.00013861,2]
[353373333,1739802653107,-500.0,0.00013861,2]
[353373334,1739802653116,-500.0,0.00013861,2]
[353373335,1739802653126,-500.0,0.00013861,2]
[353373336,1739802653135,-500.0,0.00013861,2]
[353373337,1739802653145,-500.0,0.00013861,2]
[353373338,1739802653154,-500.0,0.00013861,2]
[353373339,1739802653164,-500.0,0.00013861,2]
[353373340,1739802653177,-500.0,0.00013861,2]
[353373341,1739802653186,-1200.0,0.00013861,2]
[353373342,1739802653196,-500.0,0.00013861,2]
[353373343,1739802653206,-150.0,0.00013861,2]
[353373344,1739802653216,-500.0,0.00013861,2]
[353373345,1739802653226,-877.72,0.00013861,2]
[353373346,1739802653235,-500.0,0.00013861,2]
[353373347,1739802653246,-544.18,0.00013861,2]
[353373348,1739802653255,-500.0,0.00013861,2]
[353373349,1739802653269,-500.0,0.00013861,2]
[353373350,1739802653278,-912.58,0.00013861,2]
[353373351,1739802653288,-500.0,0.00013861,2]
[353373352,1739802653299,-500.0,0.00013861,2]
[353373353,1739802653309,-500.0,0.00013861,2]
[353373354,1739802653319,-500.0,0.00013861,2]
[353373355,1739802653328,-593.86,0.00013861,2]
[353373356,1739802653338,-680.35,0.00013861,2]
[353373357,1739802653349,-892.9,0.00013861,2]
[353373358,1739802653359,-1055.34,0.00013861,2]
[353373359,1739802653369,-500.0,0.00013861,2]
[353373360,1739802653378,-500.0,0.00013861,2]
[353373361,1739802653388,-500.0,0.00013861,2]
[353373362,1739802653399,-500.0,0.00013861,2]
[353373363,1739802653408,-500.0,0.00013861,2]
[353373364,1739802653419,-651.65,0.00013861,2]
[353373365,1739802653429,-500.0,0.00013861,2]
[353373366,1739802653439,-398.86178003,0.00013861,2]
[353373367,1739802653448,-500.0,0.00013861,2]
[353373368,1739802653457,-500.0,0.00013861,2]
[353373369,1739802653467,-500.0,0.00013861,2]
[353373370,1739802653476,-537.79,0.00013861,2]
[353373371,1739802653486,-500.0,0.00013861,2]
[353373372,1739802653495,-500.0,0.00013861,2]
[353373373,1739802653505,-513.82347748,0.00013861,2]
[353373374,1739802653514,-500.0,0.00013861,2]
[353373375,1739802653524,-500.0,0.00013861,2]
[353373376,1739802653533,-685.55,0.00013861,2]
[353373377,1739802653542,-500.0,0.00013861,2]
[353373378,1739802653552,-150.0,0.00013861,2]
[353373379,1739802653561,-500.0,0.00013861,2]
[353373380,1739802653570,-500.0,0.00013861,2]
[353373381,1739802653579,-900.67,0.00013861,2]
[353373382,1739802653589,-500.0,0.00013861,2]
[353373383,1739802653663,-500.0,0.00013861,2]
[353373384,1739802653673,-446.58249897,0.00013861,2]
[353373385,1739802653683,-500.0,0.00013861,2]
[353373386,1739802653692,-500.0,0.00013861,2]
[353373387,1739802653702,-500.0,0.00013861,2]
[353373388,1739802653711,-500.0,0.00013861,2]
[353373389,1739802653721,-500.0,0.00013861,2]
[353373390,1739802653732,-500.0,0.00013861,2]
[353373391,1739802653741,-500.0,0.00013861,2]
[353373392,1739802653750,-500.0,0.00013861,2]
[353373393,1739802653760,-500.0,0.00013861,2]
[353373394,1739802653770,-500.0,0.00013861,2]
[353373395,1739802653779,-661.87,0.00013861,2]
[353373396,1739802653789,-717.16,0.00013861,2]
[353373397,1739802653799,-500.0,0.00013861,2]
[353373398,1739802653808,-500.0,0.00013861,2]
[353373399,1739802653818,-611.22,0.00013861,2]
[353373400,1739802653827,-500.0,0.00013861,2]
[353373401,1739802653836,-759.66,0.00013861,2]
[353373402,1739802653845,-500.0,0.00013861,2]
[353373403,1739802653854,-500.0,0.00013862,2]
[353373404,1739802653863,-1059.506449,0.00013863,2]
[353373405,1739802653873,-1149.288711,0.00013863,2]
[353373406,1739802653883,-500.0,0.00013863,2]
[353373407,1739802653892,-500.0,0.00013863,2]
[353373408,1739802653902,-500.0,0.00013863,2]
[353373409,1739802653911,-511.45,0.00013863,2]
[353373410,1739802653922,-313.43523478,0.00013863,2]
[353373411,1739802653931,-500.0,0.00013863,2]
[353373412,1739802653941,-500.0,0.00013863,2]
[353373413,1739802653950,-500.0,0.00013863,2]
[353373414,1739802653959,-516.8390812,0.00013863,2]
[353373415,1739802653968,-500.0,0.00013863,2]
[353373416,1739802653977,-500.0,0.00013863,2]
[353373417,1739802653987,-500.0,0.00013863,2]
[353373418,1739802653995,-552.64,0.00013863,2]
[353373419,1739802654005,-516.97,0.00013863,2]
[353373420,1739802654014,-500.0,0.00013863,2]
[353373421,1739802654023,-500.0,0.00013863,2]
[353373422,1739802654033,-500.0,0.00013863,2]
[353373423,1739802654042,-500.0,0.00013863,2]
[353373424,1739802654052,-500.0,0.00013863,2]
[353373425,1739802654062,-500.0,0.00013863,2]
[353373426,1739802654072,-500.0,0.00013863,2]
[353373427,1739802654081,-242.01224704,0.00013863,2]
[353373428,1739802654091,-500.0,0.00013863,2]
[353373429,1739802654100,-500.0,0.00013863,2]
[353373430,1739802654109,-1075.74,0.00013863,2]
[353373431,1739802654119,-500.0,0.00013863,2]
[353373432,1739802654128,-500.0,0.00013863,2]
[353373433,1739802654138,-805.75,0.00013863,2]
[353373434,1739802654147,-500.0,0.00013863,2]
[353373435,1739802654156,-809.02,0.00013863,2]
[353373436,1739802654166,-1406.7,0.00013863,2]
[353373437,1739802654179,-500.0,0.00013863,2]
[353373438,1739802654189,-151.0,0.00013863,2]
[353373439,1739802654199,-1255.87,0.00013863,2]
[353373440,1739802654208,-500.0,0.00013863,2]
[353373441,1739802654218,-1205.98,0.00013863,2]
[353373442,1739802654228,-500.0,0.00013863,2]
[353373443,1739802654237,-150.0,0.00013863,2]
[353373444,1739802654247,-500.0,0.00013863,2]
[353373445,1739802654256,-500.0,0.00013863,2]
[353373446,1739802654267,-500.0,0.00013863,2]
[353373447,1739802654277,-1098.65,0.00013863,2]
[353373448,1739802654287,-592.01,0.00013863,2]
[353373449,1739802654296,-712.98,0.00013863,2]
[353373450,1739802654307,-500.0,0.00013863,2]
[353373451,1739802654316,-500.0,0.00013863,2]
[353373452,1739802654326,-575.2004674,0.00013863,2]
[353373453,1739802654335,-833.05,0.00013863,2]
[353373454,1739802654346,-1035.8,0.00013863,2]
[353373455,1739802654356,-500.0,0.00013863,2]
[353373456,1739802654366,-916.12,0.00013863,2]
[353373457,1739802654375,-500.0,0.00013863,2]
[353373458,1739802654384,-709.95,0.00013863,2]
[353373459,1739802654393,-500.0,0.00013863,2]
[353373460,1739802654402,-824.61,0.00013863,2]
[353373461,1739802654411,-650.35,0.00013863,2]
[353373462,1739802654422,-583.09,0.00013863,2]
[353373463,1739802654431,-1183.02,0.00013863,2]
[353373464,1739802654440,-500.0,0.00013863,2]
[353373465,1739802654449,-551.8,0.00013863,2]
[353373466,1739802654458,-500.0,0.00013863,2]
[353373467,1739802654467,-1178.64,0.00013863,2]
[353373468,1739802654476,-500.0,0.00013863,2]
[353373469,1739802654486,-868.28,0.00013863,2]
[353373470,1739802654495,-500.0,0.00013863,2]
[353373471,1739802654504,-586.47,0.00013863,2]
[353373472,1739802654513,-500.0,0.00013863,2]
[353373473,1739802654522,-1113.4,0.00013863,2]
[353373474,1739802654531,-616.86,0.00013863,2]
[353373475,1739802654540,-776.8,0.00013863,2]
[353373476,1739802654550,-711.68,0.00013863,2]
[353373477,1739802654559,-701.89,0.00013863,2]
[353373478,1739802654568,-671.96,0.00013863,2]
[353373479,1739802654577,-500.0,0.00013863,2]
[353373480,1739802654587,-151.0,0.00013863,2]
[353373481,1739802654596,-529.14,0.00013863,2]
[353373482,1739802654605,-677.57,0.00013863,2]
[353373483,1739802654615,-500.0,0.00013863,2]
[353373484,1739802654624,-1014.43,0.00013863,2]
[353373485,1739802654634,-509.67804364,0.00013863,2]
[353373486,1739802654643,-500.0,0.00013863,2]
[353373487,1739802654652,-1182.69,0.00013863,2]
[353373488,1739802654662,-500.0,0.00013863,2]
[353373489,1739802654672,-500.0,0.00013863,2]
[353373490,1739802654682,-500.0,0.00013863,2]
[353373491,1739802654691,-786.79,0.00013863,2]
[353373492,1739802654700,-573.72,0.00013863,2]
[353373493,1739802654710,-987.55,0.00013863,2]
[353373494,1739802654719,-1027.68,0.00013863,2]
[353373495,1739802654728,-506.68085639,0.00013863,2]
[353373496,1739802654738,-500.0,0.00013863,2]
[353373497,1739802654748,-181.5,0.00013863,2]
[353373498,1739802654757,-513.20762086,0.00013863,2]
[353373499,1739802654766,-800.51,0.00013863,2]
[353373500,1739802654775,-1207.43,0.00013863,2]
[353373501,1739802654784,-500.0,0.00013863,2]
[353373502,1739802654794,-947.39,0.00013863,2]
[353373503,1739802654803,-81.9295074,0.00013863,2]
[353373504,1739802655648,-370.9414182,0.00013863,2]
[353373505,1739802655674,-918.7390744,0.00013863,2]
[353373506,1739802655684,-500.0,0.00013863,2]
[353373507,1739802655694,-647.0,0.00013863,2]
[353373508,1739802655704,-790.54,0.00013863,2]
[353373509,1739802655713,-542.19,0.00013863,2]
[353373510,1739802655723,-500.0,0.00013863,2]
[353373511,1739802655732,-965.71735752,0.00013863,2]
[353373512,1739802746205,300.0,0.0002,120]
[353373513,1739802788046,223.0,0.0002,120]
[353373514,1739803202432,-10000.0,8.836e-05,2]
[353373515,1739803203311,-10000.0,8.836e-05,2]
[353373516,1739803203954,-10000.0,8.836e-05,2]
[353373517,1739803204589,-10000.0,8.836e-05,2]
[353373518,1739803205376,-10000.0,8.836e-05,2]
[353373519,1739803242057,3570.5785,1.3e-05,2]
[353373520,1739803242080,429.4215,1.3e-05,2]
[353373521,1739803327106,159.0,1.3e-05,3]
[353373522,1739803334449,159.0,2.892e-05,3]
[353373523,1739803334711,159.0,4.485e-05,3]
[353373524,1739803334969,159.0,6.077e-05,3]